bitfinex/quotes_ETHUSD_20210701
["timestamp","ask_amount","ask_price","bid_price","bid_amount"]
[1625121052746,0.1120921,2207.2,2206.6,5.72560981]
[1625121052846,0.1120921,2207.2,2206.5,14.79251043]
[1625121052946,0.1120921,2207.2,2206.5,14.81552076]
[1625121053246,0.1120921,2207.2,2206.5,9.05871]
[1625121053696,0.1120921,2207.2,2206.5,14.70638678]
[1625121053996,0.1120921,2207.2,2206.5,14.70318675]
[1625121054099,0.1120921,2207.2,2206.5,9.05871]
[1625121054299,0.1120921,2207.2,2206.8,6.79411]
[1625121056571,6.0410921,2207.4,2206.8,6.79411]
[1625121060346,5.7910921,2207.4,2206.8,6.79411]
[1625121061998,5.7910921,2207.4,2206.8,12.34896366]
[1625121062525,5.7910921,2207.4,2206.8,15.92536366]
[1625121062726,0.11206805,2207.5,2206.8,15.92536366]
[1625121062826,0.11206805,2207.5,2206.9,0.18]
[1625121063125,0.11206805,2207.5,2206.8,9.27125366]
[1625121064427,0.11206805,2207.5,2207.0,6.79342]
[1625121064952,0.11206805,2207.5,2207.1,5.64809161]
[1625121065153,0.11206805,2207.5,2207.0,6.79342]
[1625121068360,0.06206805,2207.5,2207.1,5.71189568]
[1625121068467,0.06206805,2207.5,2207.1,4.8063]
[1625121068560,0.06206805,2207.5,2207.2,0.06]
[1625121069296,0.06206805,2207.5,2207.1,10.55617629]
[1625121070008,0.06206805,2207.5,2207.2,6.793]
[1625121071559,0.06206805,2207.5,2207.1,4.8063]
[1625121071663,0.06206805,2207.5,2207.1,5.55173965]
[1625121071759,0.06206805,2207.5,2206.9,18.21114388]
[1625121071859,0.06206805,2207.5,2206.9,12.45371]
[1625121071959,0.06206805,2207.5,2207.0,5.84936131]
[1625121072058,0.06206805,2207.5,2207.0,9.89805391]
[1625121072158,0.06206805,2207.5,2207.0,9.96218065]
[1625121072374,0.06206805,2207.5,2207.0,4.2668]
[1625121072460,0.06206805,2207.5,2207.0,9.80139254]
[1625121072562,0.06206805,2207.5,2207.1,0.06]
[1625121072765,0.06206805,2207.5,2207.1,0.2]
[1625121072961,0.06206805,2207.5,2207.2,6.7923]
[1625121073967,0.06206805,2207.5,2207.2,12.37063236]
[1625121074168,0.06206805,2207.5,2207.2,6.7923]
[1625121074368,0.11205602,2207.5,2207.2,6.7923]
[1625121074468,0.11205602,2207.5,2207.3,5.77769571]
[1625121074569,0.11205602,2207.5,2207.3,5.77584741]
[1625121075069,5.602e-05,2207.5,2207.3,5.77584741]
[1625121075374,5.602e-05,2207.5,2207.4,5.15]
[1625121075473,5.602e-05,2207.5,2207.4,27.5934112]
[1625121075574,3.7,2208.7,2207.5,27.4]
[1625121075673,3.7,2208.7,2207.6,9.21642035]
[1625121075774,9.872,2209.2,2207.6,9.21642035]
[1625121075775,9.872,2209.2,2207.9,3.39419]
[1625121075872,9.872,2209.2,2208.0,0.28797868]
[1625121076015,9.872,2209.2,2208.1,5.01]
[1625121076114,30.2539,2209.4,2208.2,5.86747247]
[1625121076215,30.2539,2209.4,2208.2,0.00756281]
[1625121076316,30.2539,2209.4,2208.2,5.59004953]
[1625121076317,0.08,2209.3,2208.2,5.59004953]
[1625121076417,0.08,2209.3,2208.1,5.09789616]
[1625121076515,0.08,2209.3,2208.1,4.8781]
[1625121076617,6.79037,2208.9,2208.1,11.6678]
[1625121076732,6.79037,2208.9,2208.2,5.69316541]
[1625121076815,6.79037,2208.9,2208.2,5.85335066]
[1625121076916,2.02430786,2209.3,2208.2,5.85335066]
[1625121077115,39.3067,2209.4,2208.2,5.85335066]
[1625121077718,30.2539,2209.4,2208.2,12.64286066]
[1625121077815,30.2539,2209.4,2208.3,0.40534956]
[1625121077915,30.2539,2209.4,2208.3,0.14]
[1625121078819,27.24421,2209.4,2208.6,6.78846]
[1625121078919,16.56711,2209.4,2208.6,6.78846]
[1625121079017,9.7785,2209.4,2208.6,11.30386]
[1625121079117,9.7785,2209.4,2208.7,5.71004704]
[1625121079318,9.7785,2209.4,2208.8,0.06]
[1625121079417,9.05156,2209.7,2208.8,0.06]
[1625121079917,9.05156,2209.7,2208.7,6.63434704]
[1625121080319,6.78809,2209.6,2208.8,6.78786]
[1625121080652,0.11197193,2209.4,2208.8,6.78786]
[1625121080853,0.11197193,2209.4,2208.9,5.61869986]
[1625121080952,0.11197193,2209.4,2208.9,10.66748575]
[1625121081256,0.11197193,2209.4,2208.9,5.0248]
[1625121081354,0.06197193,2209.4,2208.9,5.0248]
[1625121081856,0.06197193,2209.4,2209.0,5.85377674]
[1625121081956,0.06197193,2209.4,2209.0,12.64086674]
[1625121082055,0.06197193,2209.4,2209.1,0.04]
[1625121082357,0.06197193,2209.4,2209.0,1.1458]
[1625121084462,0.06197193,2209.4,2209.1,6.7869]
[1625121084561,0.06197193,2209.4,2209.1,9.8374]
[1625121086271,0.06197193,2209.4,2209.1,15.48532568]
[1625121086474,0.06197193,2209.4,2209.1,9.8374]
[1625121086572,0.11196292,2209.4,2209.1,15.5958254]
[1625121086777,0.11196292,2209.4,2209.2,0.1]
[1625121088221,0.11196292,2209.4,2209.1,15.42674451]
[1625121088728,0.11196292,2209.4,2209.1,15.56674451]
[1625121091868,6.78583,2210.1,2209.1,15.56674451]
[1625121092070,6.78583,2210.1,2209.2,0.1]
[1625121092169,5.53583,2210.1,2209.2,0.1]
[1625121092271,10.0225,2210.2,2209.3,6.92512]
[1625121092560,5.01,2210.0,2209.0,5.61250523]
[1625121092658,11.02841692,2210.0,2208.9,0.14]
[1625121092962,10.97841692,2210.0,2208.9,0.14]
[1625121093060,13.02573005,2210.0,2208.9,0.14]
[1625121093160,2.02700456,2209.9,2208.9,0.14]
[1625121093367,6.787,2209.7,2208.8,6.78632]
[1625121093759,2.02700456,2209.9,2208.8,21.78632]
[1625121093864,2.02700456,2209.9,2209.8,0.012]
[1625121093963,16.05639313,2210.0,2209.8,0.012]
[1625121094161,16.05639313,2210.0,2208.6,6.92846]
[1625121094162,27.45,2209.9,2208.6,6.92846]
[1625121094262,5.8617417,2209.8,2208.6,6.92846]
[1625121094360,5.93656002,2209.8,2208.6,6.78846]
[1625121094467,5.01,2209.6,2208.4,10.731]
[1625121094562,5.73497347,2209.5,2208.4,10.591]
[1625121094669,10.74497347,2209.5,2208.4,10.591]
[1625121094784,5.01,2209.4,2208.3,9.05128]
[1625121094982,5.01,2209.4,2207.8,10.7394]
[1625121094983,10.76997102,2209.3,2207.9,6.00759075]
[1625121095133,5.01,2209.2,2207.8,25.8794]
[1625121095232,10.76997102,2209.3,2207.8,10.7394]
[1625121095336,6.21720472,2209.1,2207.8,10.7394]
[1625121095432,5.01,2209.0,2207.8,10.7394]
[1625121095538,5.84770316,2208.9,2207.8,10.7394]
[1625121095647,5.84770316,2208.9,2207.6,6.79056]
[1625121095648,6.79046,2208.6,2207.6,6.79056]
[1625121095741,9.05408,2208.8,2208.7,2.52e-06]
[1625121095833,15.15084367,2208.8,2208.5,1.173e-05]
[1625121095937,5.01,2208.6,2208.5,1.173e-05]
[1625121096033,8.1197,2208.6,2208.5,1.173e-05]
[1625121096132,8.4397,2208.6,2208.5,1.173e-05]
[1625121096232,18.68033723,2208.6,2208.5,1.173e-05]
[1625121096436,18.90745886,2208.6,2208.5,1.173e-05]
[1625121096535,26.60976865,2208.6,2208.5,1.173e-05]
[1625121096634,26.68064082,2208.6,2208.5,1.173e-05]
[1625121096732,27.45,2208.5,2207.9,0.0173426]
[1625121096833,6.20961645,2208.4,2207.9,0.0173426]
[1625121096933,3.2,2208.3,2207.9,2.6e-06]
[1625121097085,3.2,2208.3,2207.7,6.6e-06]
[1625121097086,5.01,2208.1,2207.7,6.6e-06]
[1625121097184,5.01,2208.0,2207.7,6.6e-06]
[1625121097285,5.15,2208.0,2207.7,6.6e-06]
[1625121097382,5.01,2207.9,2207.7,6.6e-06]
[1625121097484,5.01,2207.8,2207.7,6.6e-06]
[1625121097683,5.15,2207.9,2207.7,6.6e-06]
[1625121097784,10.65527657,2207.9,2207.7,6.6e-06]
[1625121097883,10.65527657,2207.9,2207.1,0.02620334]
[1625121097884,33.10239283,2207.8,2207.1,0.02620334]
[1625121098036,5.01,2207.6,2207.1,0.02620334]
[1625121098134,8.9136,2207.6,2207.1,3.34e-06]
[1625121098235,6.68572188,2207.5,2207.1,3.34e-06]
[1625121098335,5.01,2207.3,2207.1,3.34e-06]
[1625121098536,0.14,2207.2,2207.1,3.34e-06]
[1625121098837,0.22,2207.2,2207.1,3.34e-06]
[1625121098936,6.93591,2207.2,2207.1,3.34e-06]
[1625121099478,9.33746023,2207.2,2207.1,3.34e-06]
[1625121099777,11.6987943,2207.2,2207.1,3.34e-06]
[1625121100430,11.5587943,2207.2,2207.1,3.34e-06]
[1625121101424,11.5587943,2207.2,2207.1,0.008824]
[1625121101672,9.33746023,2207.2,2207.1,0.008824]
[1625121101773,9.33746023,2207.2,2207.1,0.0163663]
[1625121101876,2.40155023,2207.2,2207.1,0.0163663]
[1625121102076,5.15,2207.4,2207.1,0.0163663]
[1625121102175,5.15,2207.4,2207.3,0.01676963]
[1625121102976,7.55133407,2207.4,2207.3,0.01676963]
[1625121103078,7.55133407,2207.4,2207.3,0.02304169]
[1625121103179,22.85133407,2207.4,2207.3,0.02304169]
[1625121103276,25.2528843,2207.4,2207.3,0.02304169]
[1625121104125,32.3528843,2207.4,2207.3,1.169e-05]
[1625121104229,6.79542,2207.3,2207.1,0.02276977]
[1625121104327,32.46,2207.2,2207.1,0.02276977]
[1625121105430,5.01,2207.2,2207.1,0.02276977]
[1625121105933,9.19697023,2207.3,2207.1,0.02276977]
[1625121106057,5.0338882,2207.5,2207.1,0.02276977]
[1625121106241,0.0238882,2207.5,2207.1,0.02276977]
[1625121108403,27.45,2207.4,2206.7,0.03086226]
[1625121108499,27.59,2207.4,2206.7,0.03086226]
[1625121108597,5.01,2207.2,2206.7,0.03086226]
[1625121108698,0.02853895,2207.1,2206.7,0.03086226]
[1625121108904,0.14,2207.0,2206.7,0.03086226]
[1625121108995,5.0441,2207.0,2206.7,0.03086226]
[1625121109194,24.21,2206.8,2206.7,0.03086226]
[1625121110100,30.41,2206.8,2206.7,0.03086226]
[1625121110198,24.21,2206.8,2206.7,0.03086226]
[1625121110402,24.31,2206.8,2206.7,0.03086226]
[1625121111247,24.31,2206.8,2206.3,0.03532895]
[1625121111248,27.45,2206.7,2206.3,0.03532895]
[1625121111347,27.45,2206.6,2206.1,0.03739759]
[1625121111648,0.03532895,2206.5,2206.1,0.03739759]
[1625121111848,5.01,2206.4,2206.1,0.03739759]
[1625121112249,0.03532895,2206.5,2206.1,0.03739759]
[1625121112348,5.01,2206.4,2206.1,0.03739759]
[1625121112652,5.01,2206.4,2205.7,0.04101953]
[1625121112653,33.63784086,2206.3,2205.7,0.04101953]
[1625121112848,5.01,2206.0,2205.7,0.04101953]
[1625121113039,5.01,2206.0,2205.3,0.0437284]
[1625121113040,27.45,2205.8,2205.3,0.0437284]
[1625121113143,27.45,2205.7,2205.2,0.01]
[1625121113241,5.01,2205.5,2205.2,0.01]
[1625121113441,0.3,2205.4,2205.2,0.01]
[1625121113541,5.31,2205.4,2205.2,0.01]
[1625121113641,32.46,2205.3,2205.2,0.01]
[1625121113741,33.86082121,2205.3,2205.2,0.01]
[1625121114343,33.94082121,2205.3,2205.2,0.01]
[1625121115224,5.01,2205.1,2204.9,0.00466927]
[1625121115324,32.41,2205.0,2204.9,0.00466927]
[1625121115427,38.05333387,2205.0,2204.9,0.00466927]
[1625121115524,38.19333387,2205.0,2204.9,0.00466927]
[1625121115628,38.29333387,2205.0,2204.9,0.00466927]
[1625121116324,5.25,2205.0,2204.9,0.00466927]
[1625121116529,5.15,2205.0,2204.9,0.00466927]
[1625121117024,23.05,2205.0,2204.9,0.00466927]
[1625121117493,0.14,2205.0,2204.9,0.00466927]
[1625121117694,10.6745284,2205.5,2204.9,0.00466927]
[1625121117800,10.6745284,2205.5,2204.9,4.84596927]
[1625121117896,0.0437284,2205.5,2204.9,4.84596927]
[1625121122338,0.02534035,2205.5,2204.9,4.84596927]
[1625121123043,5.01,2205.4,2204.9,4.84596927]
[1625121123243,0.02534035,2205.5,2204.9,4.84596927]
[1625121127398,0.02534035,2205.5,2204.9,11.64565927]
[1625121127696,0.02534035,2205.5,2204.9,17.61174998]
[1625121127798,0.02534035,2205.5,2205.0,0.1]
[1625121127896,0.02534035,2205.5,2205.1,5.01]
[1625121128145,0.02534035,2205.5,2205.2,0.14]
[1625121128250,0.02534035,2205.5,2205.2,3.53855]
[1625121128351,0.02534035,2205.5,2205.2,3.39855]
[1625121128554,0.02534035,2205.5,2205.3,6.79832]
[1625121129051,0.02534035,2205.5,2205.4,13.12]
[1625121129156,0.02534035,2205.5,2205.4,17.6818]
[1625121129452,0.02534035,2205.5,2205.4,4.6818]
[1625121129654,0.02534035,2205.5,2205.4,4.5618]
[1625121129956,0.02534035,2205.5,2205.3,0.35352]
[1625121130922,0.02534035,2205.5,2205.3,0.49352]
[1625121131426,0.02534035,2205.5,2205.3,0.35352]
[1625121132830,0.04250344,2205.7,2205.4,8.8]
[1625121132931,0.04250344,2205.7,2205.3,0.35352]
[1625121133746,0.04250344,2205.7,2205.3,0.3972484]
[1625121135595,0.04250344,2205.7,2205.3,0.0437284]
[1625121136895,0.04250344,2205.7,2205.3,6.8418584]
[1625121136995,0.04250344,2205.7,2205.3,6.9818584]
[1625121137194,0.04250344,2205.7,2205.5,5.01]
[1625121137295,3.44e-06,2205.7,2205.6,23.05]
[1625121137394,0.03930645,2206.1,2205.6,42.11150871]
[1625121137558,0.03930645,2206.1,2205.8,6.22172391]
[1625121137656,0.03930645,2206.1,2205.8,6.22032493]
[1625121137760,0.03930645,2206.1,2205.9,0.14]
[1625121138460,0.03930645,2206.1,2205.9,6.93598]
[1625121138561,0.03930645,2206.1,2206.0,19.18757864]
[1625121138658,0.03930645,2206.1,2206.0,22.26547864]
[1625121138860,0.03739759,2206.3,2206.1,12.6]
[1625121138961,0.03532895,2206.5,2206.2,26.22786775]
[1625121139066,0.03532895,2206.5,2206.2,37.91931333]
[1625121139162,0.03532895,2206.5,2206.3,0.18]
[1625121139361,0.03532895,2206.5,2206.4,15.79]
[1625121139460,0.03532895,2206.5,2206.4,15.97]
[1625121139992,0.03313792,2206.7,2206.5,10.05]
[1625121140094,0.03313792,2206.7,2206.6,14.05258666]
[1625121140191,0.03313792,2206.7,2206.6,5.73985216]
[1625121140390,0.03313792,2206.7,2206.6,5.77985216]
[1625121140691,0.03313792,2206.7,2206.6,5.91985216]
[1625121140895,0.03313792,2206.7,2206.6,12.71305216]
[1625121141093,0.03313792,2206.7,2206.6,35.71305216]
[1625121142055,0.03313792,2206.7,2206.6,33.71305216]
[1625121142150,0.03086226,2206.9,2206.7,26.35]
[1625121142250,0.03086226,2206.9,2206.8,28.5]
[1625121142350,0.03086226,2206.9,2206.8,40.64159]
[1625121143151,0.03086226,2206.9,2206.8,48.64159]
[1625121143352,0.03086226,2206.9,2206.8,59.83099]
[1625121143951,2.26e-06,2206.9,2206.8,63.12099]
[1625121144392,2.26e-06,2206.9,2206.8,65.62509094]
[1625121145348,3.71351896,2208.5,2207.1,27.4]
[1625121145445,0.01351896,2208.5,2207.2,22.39851148]
[1625121145549,0.01351896,2208.5,2207.8,2.9]
[1625121145644,0.01351896,2208.5,2207.8,6.7648]
[1625121145745,0.01351896,2208.5,2207.9,21.24520278]
[1625121145843,0.01351896,2208.5,2208.1,5.01]
[1625121145941,0.01351896,2208.5,2208.2,5.56712823]
[1625121146042,0.01351896,2208.5,2208.2,13.70712823]
[1625121146140,0.01351896,2208.5,2208.2,8.14]
[1625121146239,0.01351896,2208.5,2208.2,0.14]
[1625121146344,0.01351896,2208.5,2208.2,6.92834]
[1625121146749,0.01351896,2208.5,2208.2,12.64494044]
[1625121146949,0.01351896,2208.5,2208.2,6.92834]
[1625121147149,0.01351896,2208.5,2208.2,12.49839795]
[1625121147247,0.01351896,2208.5,2208.2,6.98834]
[1625121147353,0.01351896,2208.5,2208.2,12.9483143]
[1625121147949,0.01351896,2208.5,2208.2,6.92834]
[1625121148053,0.01351896,2208.5,2208.2,14.92834]
[1625121148148,0.01351896,2208.5,2208.2,6.92834]
[1625121148450,0.01351896,2208.5,2208.2,12.47104804]
[1625121148553,0.01351896,2208.5,2208.2,12.66018276]
[1625121148656,0.01351896,2208.5,2208.2,12.66383458]
[1625121148804,0.01351896,2208.5,2208.2,6.92834]
[1625121148896,0.01351896,2208.5,2208.2,12.43021376]
[1625121149000,0.01351896,2208.5,2208.2,7.02014]
[1625121150002,0.01351896,2208.5,2208.2,12.5439364]
[1625121150401,0.01351896,2208.5,2208.2,7.02014]
[1625121150603,0.01351896,2208.5,2208.2,22.67014]
[1625121150908,0.01351896,2208.5,2208.2,7.02014]
[1625121151561,0.01351896,2208.5,2208.2,22.02014]
[1625121151662,0.01351896,2208.5,2208.3,15.35]
[1625121151663,8.544e-05,2208.5,2208.3,15.35]
[1625121151761,8.544e-05,2208.5,2208.3,33.8718]
[1625121151863,8.544e-05,2208.5,2208.4,16.85]
[1625121152266,8.544e-05,2208.5,2208.4,5.35]
[1625121152963,8.544e-05,2208.5,2208.4,0.34]
[1625121153313,8.544e-05,2208.5,2208.4,4.2213]
[1625121153414,8.544e-05,2208.5,2208.4,11.00878]
[1625121154868,10.32880013,2209.4,2208.5,11.65]
[1625121154967,10.32880013,2209.4,2208.7,6.7876]
[1625121155269,5.54014295,2209.7,2208.7,6.7876]
[1625121155367,5.01,2209.6,2208.7,6.7876]
[1625121155619,5.01640347,2209.5,2208.7,6.7876]
[1625121155716,0.00640347,2209.5,2208.7,6.7876]
[1625121155818,0.00640347,2209.5,2209.1,0.0075423]
[1625121156015,27.4,2209.4,2208.9,0.00882066]
[1625121156217,0.52022673,2209.3,2208.9,0.00882066]
[1625121156518,0.14,2209.2,2208.9,0.00882066]
[1625121156822,5.01,2209.1,2208.7,3.18e-06]
[1625121156919,5.15,2209.1,2208.5,1.239e-05]
[1625121157020,11.38684331,2209.0,2208.5,1.239e-05]
[1625121157129,18.17739331,2209.0,2208.5,1.239e-05]
[1625121157224,5.15,2208.9,2208.5,1.239e-05]
[1625121157318,0.27024252,2208.9,2208.5,1.239e-05]
[1625121157418,5.78978436,2208.8,2208.5,1.239e-05]
[1625121157520,5.01,2208.7,2208.5,1.239e-05]
[1625121157630,5.01,2208.6,2208.5,1.239e-05]
[1625121157805,10.65227528,2208.6,2208.5,1.239e-05]
[1625121157861,10.85227528,2208.6,2208.5,1.239e-05]
[1625121157959,5.21,2208.6,2208.5,1.239e-05]
[1625121158065,17.64445987,2208.6,2208.5,1.239e-05]
[1625121158260,22.23222507,2208.6,2208.5,1.239e-05]
[1625121158766,16.5894652,2208.6,2208.5,1.239e-05]
[1625121159164,16.5294652,2208.6,2208.5,1.239e-05]
[1625121159265,5.15,2208.6,2208.5,1.239e-05]
[1625121159566,0.14,2208.6,2208.5,1.239e-05]
[1625121160378,5.15,2208.6,2208.5,1.239e-05]
[1625121160676,0.14,2208.6,2208.5,1.239e-05]
[1625121160874,0.22,2208.6,2208.5,1.239e-05]
[1625121161475,0.14,2208.6,2208.5,1.239e-05]
[1625121162177,5.15,2208.6,2208.5,1.239e-05]
[1625121162416,0.14,2208.6,2208.5,1.239e-05]
[1625121164662,5.15,2208.6,2208.5,1.239e-05]
[1625121164964,5.31,2208.6,2208.5,1.239e-05]
[1625121165162,27.35,2208.5,2207.9,0.0173426]
[1625121165263,32.36,2208.5,2207.9,0.0173426]
[1625121165363,6.06627608,2208.4,2207.9,0.0173426]
[1625121165463,5.01,2208.2,2207.9,0.0173426]
[1625121165563,6.79292,2208.1,2207.9,0.0173426]
[1625121165664,10.07572,2208.1,2207.9,0.0173426]
[1625121165762,32.36,2208.0,2207.9,0.0173426]
[1625121165967,5.01,2208.0,2207.9,0.0173426]
[1625121166068,10.07572,2208.1,2207.9,0.0173426]
[1625121166069,3.2828,2208.1,2207.9,0.0173426]
[1625121166922,0.01536648,2208.3,2207.9,0.0173426]
[1625121167318,5.01,2208.2,2207.9,0.0173426]
[1625121167518,0.14,2208.1,2207.9,0.0173426]
[1625121168726,8.46846648,2208.3,2207.9,0.0173426]
[1625121168822,5.16536648,2208.3,2207.9,0.0173426]
[1625121169763,11.95721648,2208.3,2207.9,0.0173426]
[1625121169969,11.81721648,2208.3,2207.9,0.0173426]
[1625121170165,5.02536648,2208.3,2207.9,0.0173426]
[1625121172364,5.01,2208.2,2207.9,0.0173426]
[1625121172463,5.02536648,2208.3,2207.9,0.0173426]
[1625121172564,5.01,2208.2,2207.9,0.0173426]
[1625121172763,11.81707648,2208.3,2207.9,0.0173426]
[1625121173612,6.80707648,2208.3,2207.9,0.0173426]
[1625121173961,0.08,2208.2,2207.9,0.0173426]
[1625121174062,4.0695,2208.2,2207.9,0.0173426]
[1625121174161,6.79222,2208.1,2207.9,0.0173426]
[1625121175376,3.9895,2208.2,2207.9,0.0173426]
[1625121175815,3.9395,2208.2,2207.9,0.0173426]
[1625121178668,2.45506648,2208.3,2207.9,0.0173426]
[1625121178765,0.01536648,2208.3,2207.9,0.0173426]
[1625121182582,27.35,2208.2,2207.7,0.019434]
[1625121182733,5.59225758,2208.1,2207.7,0.019434]
[1625121182833,5.01,2208.0,2207.7,0.019434]
[1625121182932,5.01,2207.9,2207.7,0.019434]
[1625121183029,3.2939,2207.9,2207.7,0.019434]
[1625121183129,27.39,2207.8,2207.7,0.019434]
[1625121183230,32.4,2207.8,2207.7,0.019434]
[1625121183533,39.1935,2207.8,2207.7,0.019434]
[1625121184803,38.9435,2207.8,2207.7,0.019434]
[1625121185462,42.1416,2207.8,2207.7,0.019434]
[1625121185561,42.2816,2207.8,2207.7,0.019434]
[1625121185662,42.3616,2207.8,2207.7,0.019434]
[1625121186262,42.3616,2207.8,2207.1,0.02620334]
[1625121186263,27.35,2207.7,2207.1,0.02620334]
[1625121186461,32.5,2207.7,2207.1,0.02620334]
[1625121186563,32.52162313,2207.7,2207.1,0.02620334]
[1625121186662,5.01,2207.6,2207.1,0.02620334]
[1625121186865,11.80418,2207.5,2207.1,0.02620334]
[1625121187077,30.41,2207.4,2207.1,0.02620334]
[1625121187165,27.35,2207.2,2206.9,0.02853895]
[1625121187269,5.48685437,2207.1,2206.9,0.02853895]
[1625121187367,32.36,2207.0,2206.9,8.95e-06]
[1625121187566,32.36,2207.0,2206.7,7.121e-05]
[1625121187669,32.11,2207.0,2206.7,7.121e-05]
[1625121187765,0.06,2206.9,2206.7,7.121e-05]
[1625121188269,34.14662,2206.8,2206.7,7.121e-05]
[1625121188468,34.38662,2206.8,2206.7,7.121e-05]
[1625121188718,34.28662,2206.8,2206.7,7.121e-05]
[1625121189419,27.35,2206.7,2206.1,0.03739759]
[1625121189523,5.01,2206.6,2206.1,0.03739759]
[1625121189618,10.87571388,2206.6,2206.1,0.03739759]
[1625121189718,5.01,2206.5,2206.1,0.03739759]
[1625121189821,5.01,2206.4,2206.1,0.03739759]
[1625121189920,5.05,2206.4,2206.1,0.03739759]
[1625121190019,10.4935606,2206.4,2206.1,0.03739759]
[1625121190118,10.4535606,2206.4,2206.1,0.03739759]
[1625121190443,5.01,2206.4,2206.1,0.03739759]
[1625121190736,6.79844,2206.3,2206.1,0.03739759]
[1625121190838,20.66,2206.2,2206.1,0.03739759]
[1625121191237,24.4887,2206.2,2206.1,0.03739759]
[1625121191797,3.8287,2206.2,2206.1,0.03739759]
[1625121192198,15.2787,2206.2,2206.1,0.03739759]
[1625121193402,3.8287,2206.2,2206.1,0.03739759]
[1625121193505,6.79844,2206.3,2206.1,0.03739759]
[1625121193701,9.2915908,2206.5,2206.1,0.03739759]
[1625121194337,5.01,2206.3,2206.1,0.03739759]
[1625121194539,5.01,2206.4,2206.1,0.03739759]
[1625121194940,11.8076,2206.4,2206.1,0.03739759]
[1625121199530,2.4942808,2206.5,2206.1,0.03739759]
[1625121199629,2.4942808,2206.5,2206.2,0.14]
[1625121199630,0.03532895,2206.5,2206.2,0.14]
[1625121200132,0.03313792,2206.7,2206.1,3.32419759]
[1625121200228,0.03313792,2206.7,2206.1,0.03739759]
[1625121200593,6.79669,2206.6,2206.1,0.03739759]
[1625121200684,0.03313792,2206.7,2206.1,0.03739759]
[1625121201084,0.03313792,2206.7,2206.3,0.03532895]
[1625121203153,0.03313792,2206.7,2206.3,6.83047895]
[1625121203354,0.03313792,2206.7,2206.4,0.06]
[1625121203453,0.03313792,2206.7,2206.4,0.2]
[1625121203652,0.03313792,2206.7,2206.4,5.21]
[1625121203755,0.03313792,2206.7,2206.5,5.01]
[1625121203855,0.03313792,2206.7,2206.4,5.07]
[1625121203954,0.03313792,2206.7,2206.6,13.62]
[1625121204056,0.03313792,2206.7,2206.6,21.62]
[1625121204154,0.03313792,2206.7,2206.6,13.62]
[1625121204253,0.03313792,2206.7,2206.6,0.22]
[1625121205093,0.03313792,2206.7,2206.6,5.87]
[1625121205281,0.03086226,2206.9,2206.7,14.2]
[1625121205451,0.02853895,2207.1,2206.9,13.3]
[1625121205651,0.02853895,2207.1,2206.8,9.0697]
[1625121205652,0.02853895,2207.1,2207.0,0.2]
[1625121205947,0.02853895,2207.1,2207.0,5.21]
[1625121206050,0.02853895,2207.1,2207.0,0.2]
[1625121206248,0.02853895,2207.1,2207.0,5.21]
[1625121206451,0.02853895,2207.1,2207.0,6.99257]
[1625121206649,3.895e-05,2207.1,2207.0,24.39257]
[1625121206750,3.895e-05,2207.1,2207.0,24.53257]
[1625121207334,3.895e-05,2207.1,2207.0,7.13257]
[1625121207628,4.229e-05,2207.3,2207.1,20.35]
[1625121207729,4.229e-05,2207.3,2207.2,6.79136]
[1625121207829,0.00013049,2207.5,2207.2,52.38946]
[1625121208031,0.00013049,2207.5,2207.3,5.21]
[1625121208131,0.00013049,2207.5,2207.3,20.21]
[1625121208229,0.00013049,2207.5,2207.4,19.66]
[1625121208330,0.02162313,2207.7,2207.4,19.8]
[1625121208534,0.02162313,2207.7,2207.5,5.05]
[1625121208734,0.02162313,2207.7,2207.6,0.14]
[1625121208834,0.02162313,2207.7,2207.6,6.93062]
[1625121208931,0.02162313,2207.7,2207.6,0.14]
[1625121209132,0.02162313,2207.7,2207.5,9.05416]
[1625121209626,0.00839973,2208.1,2207.5,9.05416]
[1625121210922,0.00839973,2208.1,2207.6,0.14]
[1625121211026,0.00839973,2208.1,2207.6,3.349]
[1625121211125,0.00839973,2208.1,2207.6,3.389]
[1625121211624,0.00839973,2208.1,2207.6,3.349]
[1625121212032,0.00839973,2208.1,2207.8,6.79023]
[1625121212129,0.00839973,2208.1,2207.7,9.05364]
[1625121212328,0.00839973,2208.1,2207.6,0.14]
[1625121214099,0.00839973,2208.1,2207.2,6.79136]
[1625121214198,0.00839973,2208.1,2207.3,3.5353296]
[1625121214701,0.00839973,2208.1,2207.4,0.06]
[1625121215001,0.00839973,2208.1,2207.7,6.7912]
[1625121220296,0.00839973,2208.1,2207.8,0.14]
[1625121220489,0.00839973,2208.1,2207.8,15.22]
[1625121220596,0.01351896,2208.5,2207.9,33.53826164]
[1625121220687,0.01351896,2208.5,2208.0,15.0]
[1625121220867,0.01351896,2208.5,2208.2,19.37273072]
[1625121221057,0.01351896,2208.5,2208.3,0.14]
[1625121221210,0.01351896,2208.5,2208.3,5.15]
[1625121221411,0.01351896,2208.5,2208.3,6.92766]
[1625121222310,0.01351896,2208.5,2208.4,5.01]
[1625121222508,0.01351896,2208.5,2208.4,5.15]
[1625121222809,0.01351896,2208.5,2208.4,0.14]
[1625121224184,0.01351896,2208.5,2208.4,5.58305373]
[1625121224581,0.01351896,2208.5,2208.4,0.14]
[1625121226279,0.01351896,2208.5,2208.4,5.68483015]
[1625121226381,0.01351896,2208.5,2208.4,10.69483015]
[1625121226478,0.01351896,2208.5,2208.4,10.83483015]
[1625121226582,0.01351896,2208.5,2208.4,5.29]
[1625121226982,13.0,2208.6,2208.4,5.29]
[1625121227079,13.0,2208.6,2208.5,5.01]
[1625121227683,13.0,2208.6,2208.5,11.79811]
[1625121227785,13.0,2208.6,2208.5,6.78811]
[1625121228086,13.0,2208.6,2208.5,20.29839777]
[1625121228187,13.0,2208.6,2208.5,25.24759777]
[1625121228288,13.0,2208.6,2208.5,19.73731]
[1625121229881,0.01024252,2208.9,2208.6,23.1]
[1625121229979,0.01024252,2208.9,2208.7,5.63322315]
[1625121230383,0.01024252,2208.9,2208.7,0.14]
[1625121230682,0.01024252,2208.9,2208.8,0.12]
[1625121231184,0.01024252,2208.9,2208.7,6.78702]
[1625121233836,0.01024252,2208.9,2208.7,6.63702]
[1625121234037,0.01024252,2208.9,2208.8,0.06]
[1625121234137,0.01024252,2208.9,2208.7,6.63702]